fUST/lending_fUST_20250127
["ID","MTS","AMOUNT","RATE_DAILY","PERIOD"]
[350551615,1737959445819,-500.0,0.00020019,2]
[350551617,1737959445829,-611.58,0.0002002,2]
[350551619,1737959445839,-500.0,0.0002002,2]
[350551621,1737959445850,-500.0,0.0002002,2]
[350551623,1737959445859,-774.7,0.0002002,2]
[350551625,1737959445871,-500.0,0.0002002,2]
[350551627,1737959445882,-500.0,0.0002002,2]
[350551630,1737959445892,-500.0,0.0002002,2]
[350551632,1737959445902,-500.0,0.0002002,2]
[350551634,1737959445912,-500.0,0.0002002,2]
[350551636,1737959445921,-500.0,0.0002002,2]
[350551639,1737959445931,-500.0,0.0002002,2]
[350551641,1737959445941,-500.0,0.0002002,2]
[350551642,1737959445950,-500.0,0.0002002,2]
[350551645,1737959445960,-500.0,0.0002002,2]
[350551647,1737959445969,-500.0,0.0002002,2]
[350551649,1737959445978,-500.0,0.0002002,2]
[350551651,1737959445988,-500.0,0.0002002,2]
[350551653,1737959445998,-828.16,0.0002002,2]
[350551655,1737959446007,-500.0,0.0002002,2]
[350551657,1737959446016,-501.71318295,0.00020073,2]
[350551659,1737959446025,-255.6946225,0.00020073,2]
[350551660,1737959446036,-500.0,0.00020073,2]
[350551662,1737959446046,-502.47115406,0.00020073,2]
[350551666,1737959446055,-500.0,0.00020098,2]
[350551668,1737959446065,-500.0,0.00020098,2]
[350551670,1737959446075,-500.0,0.00020098,2]
[350551672,1737959446084,-500.0,0.00020098,2]
[350551674,1737959446095,-776.48,0.00020098,2]
[350551677,1737959446104,-500.0,0.00020098,2]
[350551680,1737959446114,-500.80372381,0.00020099,2]
[350551683,1737959446124,-505.67907156,0.00020099,2]
[350551685,1737959446133,-500.0,0.00020099,2]
[350551687,1737959446143,-500.0,0.00020099,2]
[350551689,1737959446152,-500.0,0.00020099,2]
[350551693,1737959446163,-500.0,0.00020099,2]
[350551695,1737959446172,-500.0,0.00020099,2]
[350551697,1737959446181,-500.0,0.00020099,2]
[350551699,1737959446191,-500.0,0.00020099,2]
[350551701,1737959446200,-500.0,0.00020099,2]
[350551703,1737959446209,-500.0,0.00020099,2]
[350551705,1737959446218,-500.0,0.00020099,2]
[350551707,1737959446228,-500.0,0.00020099,2]
[350551709,1737959446237,-500.0,0.00020099,2]
[350551711,1737959446246,-500.0,0.00020099,2]
[350551713,1737959446256,-500.0,0.00020134,2]
[350551714,1737959446266,-776.48,0.00020135,2]
[350551715,1737959446276,-500.0,0.00020135,2]
[350551716,1737959446285,-1333.99,0.00020153,2]
[350551717,1737959446295,-659.49,0.00020153,2]
[350551719,1737959446304,-500.0,0.00020153,2]
[350551721,1737959446314,-500.0,0.00020153,2]
[350551722,1737959446323,-719.69,0.00020153,2]
[350551723,1737959446332,-2277.89,0.00020153,2]
[350551724,1737959446342,-500.0,0.00020153,2]
[350551725,1737959446352,-500.0,0.00020154,2]
[350551726,1737959446361,-500.0,0.00020154,2]
[350551727,1737959446371,-4007.34,0.00020154,2]
[350551728,1737959446381,-1355.78,0.00020154,2]
[350551729,1737959446390,-1761.59,0.00020154,2]
[350551730,1737959446470,-847.49,0.00020154,2]
[350551731,1737959446479,-730.91,0.00020154,2]
[350551732,1737959446489,-500.0,0.00020154,2]
[350551733,1737959446499,-500.0,0.00020154,2]
[350551734,1737959446509,-1490.74,0.00020154,2]
[350551735,1737959446518,-500.0,0.00020154,2]
[350551736,1737959446527,-754.94,0.00020154,2]
[350551737,1737959446535,-500.0,0.00020154,2]
[350551738,1737959446545,-1734.95,0.00020154,2]
[350551739,1737959446554,-2780.86,0.00020154,2]
[350551740,1737959446564,-500.0,0.00020154,2]
[350551741,1737959446573,-851.62,0.00020154,2]
[350551742,1737959446583,-1416.73,0.00020154,2]
[350551743,1737959446593,-713.52,0.00020154,2]
[350551744,1737959446603,-821.4,0.00020154,2]
[350551745,1737959446614,-500.0,0.00020154,2]
[350551746,1737959446624,-500.0,0.00020154,2]
[350551747,1737959446634,-866.72,0.00020154,2]
[350551748,1737959446644,-500.0,0.00020154,2]
[350551749,1737959446653,-500.0,0.00020154,2]
[350551750,1737959446663,-5831.17,0.00020154,2]
[350551751,1737959446673,-500.0,0.00020155,2]
[350551752,1737959446682,-500.0,0.00020155,2]
[350551753,1737959446691,-500.0,0.00020155,2]
[350551754,1737959446701,-500.0,0.00020155,2]
[350551755,1737959446711,-736.83,0.00020155,2]
[350551756,1737959446720,-500.0,0.00020155,2]
[350551757,1737959446730,-564.19,0.00020155,2]
[350551758,1737959446739,-500.0,0.00020155,2]
[350551759,1737959446749,-500.0,0.00020155,2]
[350551760,1737959446758,-500.0,0.00020155,2]
[350551761,1737959446768,-500.0,0.00020155,2]
[350551762,1737959446777,-500.0,0.00020155,2]
[350551763,1737959446792,-546.1,0.00020155,2]
[350551764,1737959446801,-310.56,0.00020155,2]
[350551765,1737959446810,-509.23900783,0.00020155,2]
[350551766,1737959446820,-500.0,0.00020155,2]
[350551767,1737959446829,-500.0,0.00020155,2]
[350551768,1737959446839,-500.0,0.00020155,2]
[350551769,1737959446849,-500.0,0.00020155,2]
[350551770,1737959446858,-500.0,0.00020155,2]
[350551771,1737959446869,-500.0,0.00020155,2]
[350551772,1737959446878,-1544.11,0.00020155,2]
[350551773,1737959446887,-610.15,0.00020155,2]
[350551774,1737959446897,-6807.81,0.00020155,2]
[350551775,1737959446907,-500.0,0.00020155,2]
[350551776,1737959446917,-22591.68,0.00020155,2]
[350551777,1737959446927,-500.0,0.00020155,2]
[350551778,1737959446937,-1089.02,0.00020155,2]
[350551779,1737959446947,-574.32,0.00020155,2]
[350551780,1737959446957,-500.0,0.00020155,2]
[350551781,1737959446967,-500.0,0.00020155,2]
[350551782,1737959446976,-500.0,0.00020155,2]
[350551783,1737959446987,-500.0,0.00020155,2]
[350551784,1737959446997,-567.96,0.00020155,2]
[350551785,1737959447006,-202.01780644,0.00020155,2]
[350551786,1737959447015,-698.42,0.00020155,2]
[350551787,1737959447025,-500.0,0.00020155,2]
[350551788,1737959447035,-500.0,0.00020155,2]
[350551789,1737959447045,-334.86,0.00020156,2]
[350551790,1737959447054,-500.0,0.00020156,2]
[350551791,1737959447064,-176.63245234,0.00020156,2]
[350551792,1737959447073,-500.0,0.00020156,2]
[350551793,1737959447083,-500.0,0.00020156,2]
[350551794,1737959447092,-500.0,0.00020156,2]
[350551795,1737959447104,-500.0,0.00020156,2]
[350551796,1737959447114,-500.0,0.00020156,2]
[350551797,1737959447123,-500.0,0.00020156,2]
[350551798,1737959447133,-500.0,0.00020156,2]
[350551799,1737959447142,-500.0,0.00020156,2]
[350551800,1737959447152,-592.37,0.00020156,2]
[350551801,1737959447162,-500.0,0.00020156,2]
[350551802,1737959447172,-500.0,0.00020156,2]
[350551803,1737959447182,-512.15346549,0.00020156,2]
[350551804,1737959447191,-392.87467224,0.00020156,2]
[350551805,1737959447201,-500.0,0.00020156,2]
[350551806,1737959447211,-500.0,0.00020156,2]
[350551807,1737959447220,-500.0,0.00020156,2]
[350551808,1737959447230,-500.0,0.00020156,2]
[350551809,1737959447240,-603.80456211,0.00020156,2]
[350551810,1737959447250,-500.0,0.00020156,2]
[350551811,1737959447259,-500.0,0.00020156,2]
[350551812,1737959447268,-500.0,0.00020156,2]
[350551813,1737959447278,-500.0,0.00020156,2]
[350551814,1737959447289,-500.0,0.00020156,2]
[350551815,1737959447298,-500.0,0.00020156,2]
[350551816,1737959447308,-500.0,0.00020156,2]
[350551817,1737959447317,-500.0,0.00020156,2]
[350551818,1737959447326,-500.0,0.00020156,2]
[350551819,1737959447336,-577.85796287,0.00020156,2]
[350551820,1737959447346,-500.0,0.00020156,2]
[350551821,1737959447355,-526.8304261,0.00020156,2]
[350551822,1737959447366,-500.0,0.00020156,2]
[350551823,1737959447375,-551.3394784,0.00020156,2]
[350551824,1737959447384,-500.0,0.00020156,2]
[350551825,1737959447394,-500.0,0.00020156,2]
[350551826,1737959447404,-500.0,0.00020156,2]
[350551827,1737959447414,-500.0,0.00020156,2]
[350551828,1737959447423,-500.0,0.00020156,2]
[350551829,1737959447432,-500.0,0.00020156,2]
[350551830,1737959447442,-500.0,0.00020156,2]
[350551831,1737959447452,-500.0,0.00020156,2]
[350551832,1737959447462,-500.0,0.00020156,2]
[350551833,1737959447472,-500.0,0.00020156,2]
[350551834,1737959447481,-500.0,0.00020156,2]
[350551835,1737959447491,-500.0,0.00020156,2]
[350551836,1737959447501,-500.0,0.00020156,2]
[350551837,1737959447510,-776.48,0.00020156,2]
[350551838,1737959447520,-500.0,0.00020156,2]
[350551839,1737959447530,-500.0,0.00020156,2]
[350551840,1737959447539,-500.0,0.00020156,2]
[350551841,1737959447548,-500.0,0.00020156,2]
[350551842,1737959447558,-500.0,0.00020156,2]
[350551843,1737959447568,-500.0,0.00020156,2]
[350551844,1737959447578,-500.0,0.00020156,2]
[350551845,1737959447587,-500.0,0.00020156,2]
[350551846,1737959447598,-500.0,0.00020156,2]
[350551847,1737959447608,-500.0,0.00020156,2]
[350551848,1737959447617,-500.0,0.00020156,2]
[350551849,1737959447627,-500.0,0.00020156,2]
[350551850,1737959447636,-500.0,0.00020156,2]
[350551851,1737959447645,-500.0,0.00020156,2]
[350551852,1737959447654,-500.0,0.00020156,2]
[350551853,1737959447664,-500.0,0.00020156,2]
[350551854,1737959447673,-500.0,0.00020156,2]
[350551855,1737959447682,-500.0,0.00020156,2]
[350551856,1737959447692,-500.0,0.00020156,2]
[350551857,1737959447702,-500.0,0.00020156,2]
[350551858,1737959447711,-500.0,0.00020156,2]
[350551859,1737959447721,-500.0,0.00020156,2]
[350551860,1737959447730,-496.18771056,0.00020156,2]
[350551861,1737959447740,-500.0,0.00020156,2]
[350551862,1737959447749,-500.0,0.00020156,2]
[350551863,1737959447759,-500.0,0.00020156,2]
[350551864,1737959447768,-500.0,0.00020156,2]
[350551865,1737959447778,-500.0,0.00020156,2]
[350551866,1737959447790,-500.0,0.00020156,2]
[350551867,1737959447800,-500.0,0.00020156,2]
[350551868,1737959447810,-611.58,0.00020157,2]
[350551869,1737959447819,-500.0,0.00020157,2]
[350551870,1737959447829,-500.0,0.00020157,2]
[350551871,1737959447838,-774.7,0.00020157,2]
[350551872,1737959447849,-500.0,0.00020157,2]
[350551873,1737959447859,-500.0,0.00020157,2]
[350551874,1737959447869,-500.0,0.00020157,2]
[350551875,1737959447880,-500.0,0.00020157,2]
[350551876,1737959447889,-500.0,0.00020157,2]
[350551877,1737959447899,-500.0,0.00020157,2]
[350551878,1737959447908,-500.0,0.00020157,2]
[350551879,1737959447918,-500.0,0.00020157,2]
[350551880,1737959447928,-500.0,0.00020157,2]
[350551881,1737959447937,-500.0,0.00020157,2]
[350551882,1737959448021,-500.0,0.00020157,2]
[350551883,1737959448030,-500.0,0.00020157,2]
[350551884,1737959448040,-500.0,0.00020157,2]
[350551885,1737959448049,-828.16,0.00020157,2]
[350551886,1737959448060,-500.0,0.00020157,2]
[350551887,1737959448070,-229.84977069,0.00020164,2]
[350551888,1737959448080,-499.999999,0.0002018,2]
[350551889,1737959448090,-151.0,0.000202,3]
[350551890,1737959448100,-500.0,0.00020235,2]
[350551891,1737959448110,-500.0,0.00020235,2]
[350551892,1737959448121,-327.82679629,0.00020235,2]
[350551893,1737959448131,-776.48,0.00020235,2]
[350551894,1737959448141,-776.48,0.00020235,2]
[350551895,1737959448150,-189.22,0.00020235,2]
[350551896,1737959448160,-500.0,0.00020236,2]
[350551897,1737959448170,-500.0,0.00020236,2]
[350551898,1737959448179,-592.75377665,0.00020236,2]
[350551899,1737959448188,-500.0,0.00020236,2]
[350551900,1737959448197,-504.42693116,0.00020236,2]
[350551901,1737959448207,-500.0,0.00020236,2]
[350551902,1737959448216,-500.0,0.00020236,2]
[350551903,1737959448226,-500.0,0.00020236,2]
[350551904,1737959448235,-500.0,0.00020236,2]
[350551905,1737959448244,-500.0,0.00020236,2]
[350551906,1737959448254,-500.0,0.00020236,2]
[350551907,1737959448263,-776.48,0.00020272,2]
[350551908,1737959448272,-1333.99,0.0002029,2]
[350551909,1737959448282,-659.49,0.0002029,2]
[350551910,1737959448291,-500.0,0.0002029,2]
[350551911,1737959448301,-500.0,0.0002029,2]
[350551912,1737959448311,-719.69,0.0002029,2]
[350551913,1737959448320,-2277.89,0.0002029,2]
[350551914,1737959448330,-500.0,0.0002029,2]
[350551915,1737959448340,-500.0,0.00020291,2]
[350551916,1737959448350,-4007.34,0.00020291,2]
[350551917,1737959448360,-1355.78,0.00020291,2]
[350551918,1737959448371,-1761.59,0.00020291,2]
[350551919,1737959448381,-847.49,0.00020291,2]
[350551920,1737959448390,-730.91,0.00020291,2]
[350551921,1737959448400,-500.0,0.00020291,2]
[350551922,1737959448410,-422.57379249,0.00020291,2]
[350551923,1737959448419,-1490.74,0.00020291,2]
[350551924,1737959448429,-754.94,0.00020291,2]
[350551925,1737959448438,-500.0,0.00020291,2]
[350551926,1737959448447,-1734.95,0.00020291,2]
[350551927,1737959448456,-2780.86,0.00020291,2]
[350551928,1737959448465,-500.0,0.00020291,2]
[350551929,1737959448475,-851.62,0.00020291,2]
[350551930,1737959448484,-1416.73,0.00020291,2]
[350551931,1737959448493,-713.52,0.00020291,2]
[350551932,1737959448503,-821.4,0.00020291,2]
[350551933,1737959448514,-500.0,0.00020291,2]
[350551934,1737959448524,-161.38,0.00020291,2]
[350551935,1737959448534,-866.72,0.00020291,2]
[350551936,1737959448544,-500.0,0.00020291,2]
[350551937,1737959448554,-500.0,0.00020291,2]
[350551938,1737959448564,-5831.17,0.00020291,2]
[350551939,1737959448574,-500.0,0.00020292,2]
[350551940,1737959448583,-500.0,0.00020292,2]
[350551941,1737959448592,-500.0,0.00020292,2]
[350551942,1737959448603,-500.0,0.00020292,2]
[350551943,1737959448612,-736.83,0.00020292,2]
[350551944,1737959448622,-500.0,0.00020292,2]
[350551945,1737959448632,-564.19,0.00020292,2]
[350551946,1737959448642,-500.0,0.00020292,2]
[350551947,1737959448651,-500.0,0.00020292,2]
[350551948,1737959448661,-500.0,0.00020292,2]
[350551949,1737959448671,-500.0,0.00020292,2]
[350551950,1737959448681,-500.0,0.00020292,2]
[350551951,1737959448691,-546.1,0.00020292,2]
[350551952,1737959448701,-500.0,0.00020292,2]
[350551953,1737959448711,-500.0,0.00020292,2]
[350551954,1737959448720,-524.01504107,0.00020292,2]
[350551955,1737959448732,-500.0,0.00020292,2]
[350551956,1737959448742,-500.0,0.00020292,2]
[350551957,1737959448751,-500.0,0.00020292,2]
[350551958,1737959448762,-1544.11,0.00020292,2]
[350551959,1737959448771,-610.15,0.00020292,2]
[350551960,1737959448782,-6807.81,0.00020292,2]
[350551961,1737959448794,-500.0,0.00020292,2]
[350551962,1737959448803,-22591.68,0.00020292,2]
[350551963,1737959448813,-500.0,0.00020292,2]
[350551964,1737959448822,-1089.02,0.00020292,2]
[350551965,1737959448833,-574.32,0.00020292,2]
[350551966,1737959448843,-379.83018988,0.00020292,2]
[350551967,1737959448855,-500.0,0.00020292,2]
[350551968,1737959448866,-500.0,0.00020292,2]
[350551969,1737959448876,-500.0,0.00020292,2]
[350551970,1737959448886,-567.96,0.00020292,2]
[350551971,1737959448895,-698.42,0.00020292,2]
[350551972,1737959448906,-500.0,0.00020292,2]
[350551973,1737959448915,-500.0,0.00020292,2]
[350551974,1737959448925,-500.0,0.00020293,2]
[350551975,1737959448935,-500.0,0.00020293,2]
[350551976,1737959448944,-500.0,0.00020293,2]
[350551977,1737959448953,-500.0,0.00020293,2]
[350551978,1737959448963,-277.32417551,0.00020293,2]
[350551979,1737959448972,-500.0,0.00020293,2]
[350551980,1737959448981,-500.0,0.00020293,2]
[350551981,1737959448991,-500.0,0.00020293,2]
[350551982,1737959449000,-500.0,0.00020293,2]
[350551983,1737959449010,-500.0,0.00020293,2]
[350551984,1737959449019,-500.0,0.00020293,2]
[350551985,1737959449029,-307.14404555,0.00020293,2]
[350551986,1737959449038,-500.0,0.00020293,2]
[350551987,1737959449048,-500.0,0.00020293,2]
[350551988,1737959449057,-500.0,0.00020293,2]
[350551989,1737959449066,-500.0,0.00020293,2]
[350551990,1737959449076,-500.0,0.00020293,2]
[350551991,1737959449085,-500.0,0.00020293,2]
[350551992,1737959449094,-500.0,0.00020293,2]
[350551993,1737959449105,-500.0,0.00020293,2]
[350551994,1737959449114,-223.3789264,0.00020293,2]
[350551995,1737959449126,-500.0,0.00020293,2]
[350551996,1737959449137,-500.0,0.00020293,2]
[350551997,1737959449146,-500.0,0.00020293,2]
[350551998,1737959449156,-500.0,0.00020293,2]
[350551999,1737959449166,-500.0,0.00020293,2]
[350552000,1737959449175,-500.0,0.00020293,2]
[350552001,1737959449185,-500.0,0.00020293,2]
[350552002,1737959449195,-501.62073287,0.00020293,2]
[350552003,1737959449205,-500.0,0.00020293,2]
[350552004,1737959449215,-500.0,0.00020293,2]
[350552005,1737959449225,-500.0,0.00020293,2]
[350552006,1737959449235,-500.0,0.00020293,2]
[350552007,1737959449245,-500.0,0.00020293,2]
[350552008,1737959449255,-500.0,0.00020293,2]
[350552009,1737959449265,-500.0,0.00020293,2]
[350552010,1737959449275,-500.0,0.00020293,2]
[350552011,1737959449284,-500.0,0.00020293,2]
[350552012,1737959449295,-500.0,0.00020293,2]
[350552013,1737959449305,-500.0,0.00020293,2]
[350552014,1737959449316,-500.0,0.00020293,2]
[350552015,1737959449326,-500.0,0.00020293,2]
[350552016,1737959449336,-267.13607877,0.00020293,2]
[350552017,1737959449347,-500.0,0.00020293,2]
[350552018,1737959449356,-500.0,0.00020293,2]
[350552019,1737959449366,-500.0,0.00020293,2]
[350552020,1737959449376,-500.0,0.00020293,2]
[350552021,1737959449386,-500.0,0.00020293,2]
[350552022,1737959449465,-500.0,0.00020293,2]
[350552023,1737959449475,-500.0,0.00020293,2]
[350552024,1737959449484,-500.0,0.00020293,2]
[350552025,1737959449494,-500.0,0.00020293,2]
[350552026,1737959449503,-500.0,0.00020293,2]
[350552027,1737959449513,-500.0,0.00020293,2]
[350552028,1737959449523,-500.0,0.00020293,2]
[350552029,1737959449532,-500.0,0.00020293,2]
[350552030,1737959449541,-500.0,0.00020293,2]
[350552031,1737959449550,-500.0,0.00020293,2]
[350552032,1737959449559,-611.58,0.00020294,2]
[350552033,1737959449569,-500.0,0.00020294,2]
[350552034,1737959449578,-500.0,0.00020294,2]
[350552035,1737959449587,-774.7,0.00020294,2]
[350552036,1737959449597,-500.0,0.00020294,2]
[350552037,1737959449606,-500.0,0.00020294,2]
[350552038,1737959449615,-500.0,0.00020294,2]
[350552039,1737959449625,-500.0,0.00020294,2]
[350552040,1737959449634,-500.0,0.00020294,2]
[350552041,1737959449643,-500.0,0.00020294,2]
[350552042,1737959449652,-500.0,0.00020294,2]
[350552043,1737959449662,-500.0,0.00020294,2]
[350552044,1737959449671,-500.0,0.00020294,2]
[350552045,1737959449681,-500.0,0.00020294,2]
[350552046,1737959449690,-828.16,0.00020294,2]
[350552047,1737959449700,-500.0,0.00020294,2]
[350552048,1737959449711,-12945.24961731,0.00020297,2]
[350552049,1737959449720,-151.0,0.000203,3]
[350552050,1737959449730,-502.67895139,0.00020321,2]
[350552051,1737959449739,-776.48,0.00020371,2]
[350552052,1737959449749,-776.48,0.00020372,2]
[350552053,1737959449758,-500.0,0.00020373,2]
[350552054,1737959449767,-500.0,0.00020373,2]
[350552055,1737959449777,-500.0,0.00020373,2]
[350552056,1737959449787,-500.0,0.00020373,2]
[350552057,1737959449799,-606.4300019,0.00020373,2]
[350552058,1737959449808,-500.0,0.00020373,2]
[350552059,1737959449818,-500.0,0.00020373,2]
[350552060,1737959449828,-500.0,0.00020373,2]
[350552061,1737959449837,-500.0,0.00020373,2]
[350552062,1737959449848,-776.48,0.00020409,2]
[350552063,1737959449857,-1333.99,0.00020427,2]
[350552064,1737959449870,-659.49,0.00020427,2]
[350552065,1737959449881,-500.0,0.00020427,2]
[350552066,1737959449890,-500.0,0.00020427,2]
[350552067,1737959449900,-719.69,0.00020427,2]
[350552068,1737959449910,-2277.89,0.00020427,2]
[350552069,1737959449919,-175.13658105,0.00020427,2]
[350552070,1737959449930,-500.0,0.00020428,2]
[350552071,1737959449940,-4007.34,0.00020428,2]
[350552072,1737959449949,-1355.78,0.00020428,2]
[350552073,1737959449959,-1761.59,0.00020428,2]
[350552074,1737959449968,-847.49,0.00020428,2]
[350552075,1737959449978,-730.91,0.00020428,2]
[350552076,1737959449988,-229.36,0.00020428,2]
[350552077,1737959449997,-1490.74,0.00020428,2]
[350552078,1737959450007,-754.94,0.00020428,2]
[350552079,1737959450016,-500.0,0.00020428,2]
[350552080,1737959450026,-1734.95,0.00020428,2]
[350552081,1737959450036,-2780.86,0.00020428,2]
[350552082,1737959450045,-159.80207944,0.00020428,2]
[350552083,1737959450055,-851.62,0.00020428,2]
[350552084,1737959450064,-1416.73,0.00020428,2]
[350552085,1737959450074,-713.52,0.00020428,2]
[350552086,1737959450084,-821.4,0.00020428,2]
[350552087,1737959450093,-500.0,0.00020428,2]
[350552088,1737959450105,-866.72,0.00020428,2]
[350552089,1737959450115,-180.9,0.00020428,2]
[350552090,1737959450124,-500.0,0.00020428,2]
[350552091,1737959450134,-5831.17,0.00020428,2]
[350552092,1737959450144,-500.0,0.00020429,2]
[350552093,1737959450154,-500.0,0.00020429,2]
[350552094,1737959450164,-500.0,0.00020429,2]
[350552095,1737959450173,-736.83,0.00020429,2]
[350552096,1737959450183,-481.64,0.00020429,2]
[350552097,1737959450192,-564.19,0.00020429,2]
[350552098,1737959450202,-500.0,0.00020429,2]
[350552099,1737959450211,-398.76,0.00020429,2]
[350552100,1737959450220,-500.0,0.00020429,2]
[350552101,1737959450230,-500.0,0.00020429,2]
[350552102,1737959450239,-500.0,0.00020429,2]
[350552103,1737959450249,-546.1,0.00020429,2]
[350552104,1737959450258,-500.0,0.00020429,2]
[350552105,1737959450268,-575.07,0.00020429,2]
[350552106,1737959450277,-500.0,0.00020429,2]
[350552107,1737959450287,-206.61,0.00020429,2]
[350552108,1737959450296,-500.0,0.00020429,2]
[350552109,1737959450305,-1544.11,0.00020429,2]
[350552110,1737959450315,-610.15,0.00020429,2]
[350552111,1737959450324,-6807.81,0.00020429,2]
[350552112,1737959450333,-500.0,0.00020429,2]
[350552113,1737959450343,-22591.68,0.00020429,2]
[350552114,1737959450352,-500.0,0.00020429,2]
[350552115,1737959450362,-1089.02,0.00020429,2]
[350552116,1737959450372,-574.32,0.00020429,2]
[350552117,1737959450381,-500.0,0.00020429,2]
[350552118,1737959450391,-500.0,0.00020429,2]
[350552119,1737959450401,-567.96,0.00020429,2]
[350552120,1737959450410,-698.42,0.00020429,2]
[350552121,1737959450419,-500.0,0.00020429,2]
[350552122,1737959450429,-500.0,0.0002043,2]
[350552123,1737959450438,-500.0,0.0002043,2]
[350552124,1737959450447,-500.0,0.0002043,2]
[350552125,1737959450457,-500.0,0.0002043,2]
[350552126,1737959450466,-500.0,0.0002043,2]
[350552127,1737959450476,-500.0,0.0002043,2]
[350552128,1737959450485,-432.47,0.0002043,2]
[350552129,1737959450495,-500.0,0.0002043,2]
[350552130,1737959450505,-500.0,0.0002043,2]
[350552131,1737959450516,-500.0,0.0002043,2]
[350552132,1737959450525,-500.0,0.0002043,2]
[350552133,1737959450535,-500.0,0.0002043,2]
[350552134,1737959450544,-500.0,0.0002043,2]
[350552135,1737959450554,-500.0,0.0002043,2]
[350552136,1737959450563,-500.0,0.0002043,2]
[350552137,1737959450573,-500.0,0.0002043,2]
[350552138,1737959450582,-500.0,0.0002043,2]
[350552139,1737959450591,-502.106163,0.0002043,2]
[350552140,1737959450602,-422.00562859,0.0002043,2]
[350552141,1737959450613,-576.22961746,0.0002043,2]
[350552142,1737959450625,-500.0,0.0002043,2]
[350552143,1737959450634,-500.0,0.0002043,2]
[350552144,1737959450643,-500.0,0.0002043,2]
[350552145,1737959450652,-500.0,0.0002043,2]
[350552146,1737959450662,-500.0,0.0002043,2]
[350552147,1737959450671,-500.0,0.0002043,2]
[350552148,1737959450681,-500.0,0.0002043,2]
[350552149,1737959450691,-516.94888423,0.0002043,2]
[350552150,1737959450765,-300.6764344,0.0002043,2]
[350552151,1737959450775,-500.0,0.0002043,2]
[350552152,1737959450785,-776.48,0.0002043,2]
[350552153,1737959450797,-500.0,0.0002043,2]
[350552154,1737959450806,-500.0,0.0002043,2]
[350552155,1737959450815,-500.0,0.0002043,2]
[350552156,1737959450825,-500.0,0.0002043,2]
[350552157,1737959450835,-500.0,0.0002043,2]
[350552158,1737959450844,-500.0,0.0002043,2]
[350552159,1737959450856,-500.0,0.0002043,2]
[350552160,1737959450866,-500.0,0.0002043,2]
[350552161,1737959450876,-500.0,0.0002043,2]
[350552162,1737959450886,-500.0,0.0002043,2]
[350552163,1737959450896,-500.0,0.0002043,2]
[350552164,1737959450906,-500.0,0.0002043,2]
[350552165,1737959450915,-611.58,0.00020431,2]
[350552166,1737959450925,-500.0,0.00020431,2]
[350552167,1737959450935,-500.0,0.00020431,2]
[350552168,1737959450944,-774.7,0.00020431,2]
[350552169,1737959450953,-454.69245468,0.00020431,2]